bitfinex/quotes_SOLUSD_20250718
["timestamp","ask_amount","ask_price","bid_price","bid_amount"]
[1752858651111,13.47779409,178.18,178.13,7.14549193]
[1752858651289,12.75779409,178.18,178.13,7.14549193]
[1752858651487,0.72,178.17,178.13,7.14549193]
[1752858651820,90.42,178.16,178.12,7.14549193]
[1752858652120,89.7,178.15,178.12,7.14549193]
[1752858652617,89.7,178.15,178.12,7.80549193]
[1752858653127,5.61356236,178.14,178.11,0.1]
[1752858653325,5.61356236,178.14,178.11,7.24549193]
[1752858653620,7.86549193,178.13,178.11,0.1]
[1752858653789,7.14549193,178.12,178.11,0.1]
[1752858653988,7.86549193,178.12,178.11,0.1]
[1752858654899,96.84549193,178.13,178.11,0.1]
[1752858655391,0.5,178.12,178.11,7.24549193]
[1752858655818,89.7,178.13,178.11,7.24549193]
[1752858655992,89.7,178.13,178.12,7.80549193]
[1752858657009,89.7,178.13,178.11,7.24549193]
[1752858657616,5.61356236,178.14,178.11,7.24549193]
[1752858658897,6.33335914,178.15,178.11,11.75196727]
[1752858659215,5.61335914,178.15,178.12,11.65196727]
[1752858659603,6.33335914,178.15,178.11,11.75196727]
[1752858659918,89.7,178.14,178.11,11.75196727]
[1752858661238,89.7,178.14,178.12,11.65196727]
[1752858661535,95.31363313,178.14,178.12,11.65196727]
[1752858661898,89.7,178.14,178.12,11.65196727]
[1752858662105,89.7,178.14,178.13,11.65196727]
[1752858662517,89.7,178.14,178.13,12.31196727]
[1752858663431,89.7,178.19,178.13,12.31196727]
[1752858663602,89.7,178.19,178.18,11.65196727]
[1752858665000,0.06,178.2,178.18,12.31196727]
[1752858665229,0.06,178.2,178.19,12.31196727]
[1752858665738,0.06,178.2,178.19,25.91755447]
[1752858666024,0.06,178.2,178.19,37.56952174]
[1752858666438,0.06,178.2,178.19,25.91755447]
[1752858668139,0.06,178.2,178.19,37.56952174]
[1752858668348,0.06,178.22,178.21,26.0]
[1752858668632,0.06,178.22,178.21,83.73665124]
[1752858669012,0.06,178.22,178.21,84.39665124]
[1752858670010,0.06,178.22,178.21,90.00800862]
[1752858671011,0.06,178.22,178.21,60.70800862]
[1752858671212,0.06,178.22,178.21,89.98800862]
[1752858672032,0.06,178.22,178.21,43.92332465]
[1752858672231,0.06,178.22,178.21,73.20332465]
[1752858673924,0.06,178.22,178.21,67.59196727]
[1752858674143,0.06,178.22,178.21,40.93196727]
[1752858674511,0.06,178.22,178.21,41.59196727]
[1752858674709,0.06,178.22,178.21,29.94]
[1752858674914,0.06,178.22,178.21,41.59196727]
[1752858675914,0.06,178.22,178.21,47.20332465]
[1752858679145,0.06,178.22,178.21,42.68878007]
[1752858680352,0.06,178.24,178.23,26.0]
[1752858680645,0.06,178.28,178.23,62.39742269]
[1752858680812,0.06,178.28,178.27,7.13742269]
[1752858681013,0.72,178.35,178.27,43.53484538]
[1752858681219,0.06,178.36,178.34,7.13742269]
[1752858681419,0.06,178.36,178.35,36.39742269]
[1752858682339,0.78,178.36,178.35,36.39742269]
[1752858683127,0.06,178.36,178.35,40.88003423]
[1752858684556,0.78,178.36,178.35,29.26]
[1752858684948,0.78,178.36,178.35,40.88003423]
[1752858685841,0.06,178.36,178.35,40.88003423]
[1752858687845,0.78,178.36,178.35,40.88003423]
[1752858689361,0.78,178.36,178.35,11.62003423]
[1752858689578,0.78,178.36,178.35,40.86003423]
[1752858690535,0.78,178.36,178.35,40.36003423]
[1752858691860,0.06,178.36,178.35,40.36003423]
[1752858692342,0.78,178.36,178.35,29.24]
[1752858693062,0.78,178.36,178.35,29.22]
[1752858693273,0.78,178.36,178.32,11.62003423]
[1752858693439,0.78,178.36,178.33,29.22]
[1752858693765,0.72,178.35,178.33,40.84003423]
[1752858694062,0.72,178.34,178.33,40.84003423]
[1752858694247,0.78,178.36,178.33,40.84003423]
[1752858694443,0.78,178.36,178.34,29.22]
[1752858695170,0.72,178.35,178.34,29.22]
[1752858695682,0.06,178.36,178.34,29.22]
[1752858695846,0.72,178.35,178.34,29.22]
[1752858696036,6.32695262,178.35,178.28,6.28904899]
[1752858696238,95.30695262,178.35,178.29,29.22]
[1752858696439,12.34003423,178.34,178.29,40.84003423]
[1752858696748,0.72,178.33,178.3,11.62003423]
[1752858696957,0.72,178.33,178.31,29.22]
[1752858697350,96.02695262,178.35,178.31,40.84003423]
[1752858697554,0.72,178.34,178.31,40.84003423]
[1752858697750,95.30695262,178.35,178.33,11.62003423]
[1752858697951,95.30695262,178.35,178.33,40.84003423]
[1752858698257,89.7,178.35,178.33,40.84003423]
[1752858698748,89.7,178.35,178.34,11.62003423]
[1752858699162,89.7,178.35,178.34,12.30003423]
[1752858700356,89.7,178.35,178.34,11.62003423]
[1752858701538,96.02695262,178.35,178.32,11.62003423]
[1752858701773,0.72,178.34,178.33,29.22]
[1752858701973,89.7,178.35,178.33,29.22]
[1752858702144,89.7,178.35,178.33,40.84003423]
[1752858702540,89.7,178.35,178.34,11.62003423]
[1752858703568,89.7,178.35,178.33,29.22]
[1752858703774,89.7,178.35,178.33,40.84003423]
[1752858704265,95.30699944,178.35,178.33,40.84003423]
[1752858704474,96.02699944,178.35,178.33,29.22]
[1752858705655,95.30699944,178.35,178.33,29.22]
[1752858705981,0.72,178.34,178.32,29.2]
[1752858706176,0.72,178.34,178.31,29.2]
[1752858706467,5.60789591,178.32,178.28,7.13275555]
[1752858706669,95.30789591,178.32,178.29,29.2]
[1752858706852,0.72,178.31,178.29,29.2]
[1752858707060,95.30789591,178.32,178.29,29.2]
[1752858707061,0.72,178.3,178.29,29.2]
[1752858707968,7.85275555,178.3,178.29,29.2]
[1752858708470,13.4612805,178.3,178.29,29.2]
[1752858708670,6.32852495,178.3,178.29,29.2]
[1752858709468,13.4612805,178.3,178.27,29.2]
[1752858709666,0.72,178.29,178.27,29.2]
[1752858710052,5.60852495,178.3,178.27,29.2]
[1752858710655,12.7412805,178.3,178.27,29.2]
[1752858710853,0.72,178.29,178.27,29.2]
[1752858712161,90.42,178.29,178.27,29.2]
[1752858712982,89.7,178.29,178.27,29.2]
[1752858713485,90.42,178.29,178.27,29.2]
[1752858713870,89.7,178.29,178.27,29.2]
[1752858714379,90.42,178.29,178.27,29.2]
[1752858718201,89.7,178.33,178.31,7.13275555]
[1752858718521,89.7,178.33,178.32,7.13275555]
[1752858719888,89.7,178.33,178.32,7.81275555]
[1752858720203,89.7,178.33,178.32,7.13275555]
[1752858720504,90.42,178.33,178.31,36.33275555]
[1752858720667,89.7,178.33,178.32,7.13275555]
[1752858721062,0.06,178.36,178.32,7.81275555]
[1752858721311,0.06,178.36,178.35,7.13275555]
[1752858721597,0.06,178.36,178.35,36.31275555]
[1752858722176,0.06,178.36,178.35,42.59970817]
[1752858724314,0.06,178.36,178.35,41.91970817]
[1752858725111,0.06,178.36,178.35,36.31275555]
[1752858726027,0.06,178.36,178.35,41.91970817]
[1752858726396,0.06,178.36,178.35,29.18]
[1752858726614,0.06,178.36,178.35,36.31275555]
[1752858727000,0.06,178.36,178.35,42.59970817]
[1752858727805,0.06,178.36,178.35,36.31275555]
[1752858728114,0.78,178.36,178.34,7.13275555]
[1752858728319,0.78,178.36,178.35,29.16]
[1752858728523,0.06,178.36,178.35,36.29275555]
[1752858728892,0.06,178.36,178.35,36.97275555]
[1752858729531,0.06,178.36,178.35,29.16]
[1752858729813,0.06,178.36,178.35,41.89970817]
[1752858730394,0.06,178.36,178.35,36.29275555]
[1752858731627,0.06,178.36,178.35,41.89970817]
[1752858731799,0.06,178.36,178.35,42.57970817]
[1752858735028,0.06,178.36,178.35,41.89970817]
[1752858736426,0.06,178.36,178.35,42.54970817]
[1752858737129,0.06,178.36,178.35,34.76695262]
[1752858737337,0.06,178.36,178.35,36.29275555]
[1752858737716,0.06,178.36,178.35,29.16]
[1752858738029,0.75,178.36,178.35,29.16]
[1752858740037,0.06,178.36,178.35,41.89970817]
[1752858743439,0.06,178.36,178.35,42.54970817]
[1752858745738,0.06,178.36,178.35,36.27275555]
[1752858745942,0.75,178.36,178.35,36.27275555]
[1752858746625,0.06,178.36,178.35,36.27275555]
[1752858746934,0.06,178.36,178.35,41.87970817]
[1752858750854,0.06,178.36,178.35,41.90970817]
[1752858751153,0.06,178.36,178.35,42.55970817]
[1752858755161,0.06,178.36,178.35,13.41970817]
[1752858755463,0.06,178.36,178.35,42.53970817]
[1752858760880,0.06,178.36,178.35,59.32439214]
[1752858763662,0.06,178.36,178.35,6.28695262]
[1752858763868,0.06,178.36,178.35,41.86970817]
[1752858764260,0.06,178.36,178.35,42.51970817]
[1752858764970,0.06,178.36,178.35,59.30439214]
[1752858765774,0.06,178.37,178.36,16.78468397]
[1752858765977,0.06,178.37,178.36,31.77019507]
[1752858766384,0.06,178.37,178.36,24.63743952]
[1752858767064,0.06,178.37,178.36,30.24407777]
[1752858767946,0.06,178.37,178.36,13.4593938]
[1752858769481,0.06,178.37,178.36,30.24407777]
[1752858776291,1e-08,178.37,178.36,56.24407777]
[1752858776589,1e-08,178.4,178.39,42.78468397]
[1752858776883,1e-08,178.4,178.39,79.55800905]
[1752858777185,1e-08,178.4,178.39,80.27800905]
[1752858777368,1e-08,178.4,178.39,85.88370443]
[1752858778091,0.06,178.44,178.4,23.91743952]
[1752858778261,0.06,178.44,178.43,23.91743952]
[1752858778460,0.06,178.44,178.43,52.99743952]
[1752858778692,0.06,178.44,178.43,53.71743952]
[1752858778866,0.06,178.44,178.43,52.99743952]
[1752858779261,0.06,178.44,178.43,53.71743952]
[1752858779483,0.06,178.44,178.43,59.32187823]
[1752858781074,0.06,178.44,178.41,5.60506698]
[1752858781396,0.06,178.44,178.43,7.13275555]
[1752858781568,0.06,178.44,178.42,36.19275555]
[1752858781770,0.69,178.43,178.34,16.78468397]
[1752858782089,7.82275555,178.43,178.38,7.13275555]
[1752858782391,0.69,178.42,178.39,29.06]
[1752858782595,13.27665555,178.4,178.32,0.03]
[1752858782794,7.13275555,178.38,178.36,29.06]
[1752858783103,0.69,178.37,178.36,29.06]
[1752858783866,0.69,178.37,178.33,7.13275555]
[1752858784086,0.69,178.37,178.35,29.09]
[1752858784294,6.29636232,178.37,178.35,29.09]
[1752858784603,0.69,178.36,178.35,0.03]
[1752858786599,0.69,178.36,178.35,7.16275555]
[1752858786802,0.69,178.36,178.35,0.03]
[1752858787493,0.69,178.36,178.35,7.16275555]
[1752858788401,0.69,178.36,178.35,0.03]
[1752858789195,0.69,178.36,178.35,7.16275555]
[1752858790102,0.69,178.36,178.35,0.03]
[1752858791599,0.69,178.36,178.35,7.16275555]
[1752858791794,0.69,178.36,178.35,0.03]
[1752858792693,0.69,178.36,178.35,7.16275555]
[1752858793215,0.69,178.36,178.35,0.03]
[1752858794892,0.69,178.36,178.35,7.16275555]
[1752858795897,0.69,178.36,178.35,0.03]
[1752858798000,0.69,178.36,178.35,7.16275555]
[1752858798201,0.69,178.36,178.35,0.03]
[1752858799207,13.4293938,178.36,178.35,0.03]
[1752858804884,6.29663825,178.36,178.35,0.03]
[1752858805796,0.69,178.36,178.35,0.03]
[1752858807497,0.69,178.38,178.35,7.16275555]
[1752858807700,0.69,178.37,178.36,7.13275555]
[1752858807898,1.6246,178.39,178.36,7.13275555]
[1752858808074,0.69,178.38,178.36,7.13275555]
[1752858808274,0.69,178.37,178.36,7.13275555]
[1752858808488,148.59,178.4,178.36,7.82275555]
[1752858808785,89.7,178.41,178.39,7.13275555]
[1752858809106,0.69,178.4,178.38,29.04]
[1752858809806,0.69,178.39,178.38,29.04]
[1752858810308,0.69,178.39,178.38,36.17275555]
[1752858810806,89.7,178.41,178.38,7.13275555]
[1752858811104,90.39,178.41,178.4,7.13275555]
[1752858811290,89.7,178.41,178.4,7.13275555]
[1752858811889,89.7,178.41,178.39,29.02]
[1752858812105,89.7,178.41,178.4,7.13275555]
[1752858812302,90.39,178.41,178.4,7.13275555]
[1752858813604,0.06,178.42,178.4,12.73813671]
[1752858813780,0.06,178.42,178.41,7.82275555]
[1752858813976,0.75,178.42,178.41,7.13275555]
[1752858815903,0.06,178.42,178.41,7.13275555]
[1752858816811,0.75,178.42,178.41,7.13275555]
[1752858819880,0.06,178.42,178.41,7.13275555]
[1752858821904,0.06,178.42,178.41,13.42782253]
[1752858824394,0.75,178.42,178.36,0.72]
[1752858824601,0.06,178.42,178.41,7.13275555]
[1752858826210,0.74,178.42,178.4,36.13275555]
[1752858826599,7.87275555,178.42,178.37,7.13275555]
[1752858826795,7.13275555,178.4,178.36,0.03]
[1752858827010,7.13275555,178.4,178.36,29.03]
[1752858827413,5.60600964,178.38,178.36,29.03]
[1752858827597,0.68,178.37,178.36,29.03]
[1752858827917,7.81275555,178.37,178.36,0.03]
[1752858828298,26.20413952,178.37,178.36,0.03]
[1752858829003,19.07138397,178.37,178.36,0.03]
[1752858829218,26.20413952,178.37,178.36,0.03]
[1752858829723,31.81046345,178.37,178.36,0.03]
[1752858831017,31.81046345,178.37,178.35,0.03]
[1752858831223,49.91743952,178.33,178.32,0.03]
[1752858831405,42.78468397,178.29,178.28,0.03]
[1752858831608,49.91743952,178.29,178.28,0.03]
[1752858831909,59.28979507,178.29,178.28,0.03]
[1752858832108,52.15703952,178.29,178.28,0.03]
[1752858832828,57.76587905,178.29,178.28,0.03]
[1752858833224,64.8986346,178.29,178.28,0.03]
[1752858833929,64.8986346,178.29,178.27,0.03]
[1752858834132,36.81275555,178.28,178.27,0.03]
[1752858834603,53.59743952,178.28,178.23,0.03]
[1752858834805,16.78468397,178.26,178.23,0.03]
[1752858835022,7.13275555,178.24,178.23,0.03]
[1752858835606,7.81275555,178.24,178.23,0.03]
[1752858836831,13.42316847,178.24,178.23,0.03]
[1752858839512,0.68,178.24,178.23,0.03]
[1752858839718,26.0,178.24,178.23,0.03]
[1752858840219,7.13275555,178.25,178.23,0.03]
[1752858840402,8.45693047,178.26,178.23,0.03]
[1752858840403,24.59743952,178.24,178.23,0.03]
[1752858841230,13.42316847,178.24,178.23,0.03]
[1752858842710,5.61041292,178.24,178.23,0.03]
[1752858842907,13.42316847,178.24,178.23,0.03]
[1752858844522,30.20785244,178.24,178.23,0.03]
[1752858844725,56.20785244,178.24,178.23,0.03]
[1752858845815,59.20785244,178.24,178.2,0.03]
[1752858846181,50.59743952,178.23,178.22,1e-08]
[1752858847321,56.20816723,178.23,178.22,1e-08]
[1752858847741,57.82546723,178.23,178.22,1e-08]
[1752858849039,57.82546723,178.23,178.2,0.03]
[1752858849040,89.69999999,178.21,178.2,0.03]
[1752858849242,125.83275554,178.21,178.2,0.03]
[1752858849428,59.2087969,178.21,178.2,0.03]
[1752858849739,59.2087969,178.21,178.17,0.1]
[1752858849740,26.0,178.18,178.17,0.1]
[1752858849941,36.13275555,178.18,178.17,0.1]
[1752858850138,36.81275555,178.18,178.17,0.1]
[1752858851540,59.20974168,178.18,178.17,0.1]
[1752858851846,153.51204417,178.19,178.17,0.1]
[1752858853036,7.81275555,178.18,178.17,0.1]
[1752858853547,13.42505771,178.18,178.17,0.1]
[1752858854646,147.9,178.19,178.17,0.1]
[1752858854850,153.51207064,178.19,178.17,0.1]
[1752858855016,161.32482619,178.19,178.17,0.1]
[1752858855542,6.29230216,178.18,178.17,0.1]
[1752858855722,5.61230216,178.18,178.17,0.1]
[1752858856333,147.9,178.19,178.17,0.81]
[1752858857558,6.33041292,178.24,178.18,7.84275555]
[1752858857735,5.61041292,178.24,178.17,5.71261492]
[1752858858059,5.61041292,178.24,178.21,7.13275555]
[1752858858553,6.33041292,178.24,178.2,7.13275555]
[1752858860023,6.33041292,178.24,178.2,7.84275555]
[1752858860731,5.61041292,178.24,178.2,7.13275555]
[1752858861051,5.61041292,178.24,178.19,7.13275555]
[1752858861052,0.72,178.23,178.19,7.13275555]
[1752858861647,7.85275555,178.22,178.17,7.94275555]
[1752858862053,6.33131973,178.22,178.18,7.13275555]
[1752858862755,5.61097077,178.23,178.19,7.84275555]
[1752858862961,89.7,178.22,178.2,0.71]
[1752858863131,89.7,178.22,178.21,0.71]
[1752858863632,89.7,178.22,178.2,7.13275555]
[1752858863830,89.7,178.22,178.19,0.71]
[1752858863831,89.7,178.22,178.19,7.84275555]
[1752858864033,89.7,178.22,178.19,0.71]
[1752858865270,89.7,178.22,178.19,7.84275555]
[1752858865470,5.61135738,178.21,178.17,0.81]
[1752858865768,6.33135738,178.21,178.17,7.94275555]
[1752858866272,5.61135738,178.21,178.17,7.94275555]
[1752858866474,6.33135738,178.21,178.17,0.81]
[1752858866636,6.33135738,178.21,178.17,7.94275555]
[1752858867752,5.61135738,178.21,178.19,7.13275555]
[1752858867947,5.61135738,178.21,178.17,0.1]
[1752858867948,5.61135738,178.21,178.18,0.71]
[1752858868139,6.33135738,178.21,178.17,7.23275555]
[1752858868665,6.33135738,178.21,178.17,7.94275555]
[1752858868845,89.7,178.2,178.17,7.94275555]
[1752858869070,89.7,178.19,178.17,7.94275555]
[1752858870259,89.7,178.19,178.18,7.84275555]
[1752858872065,89.7,178.19,178.18,13.45505771]
[1752858872249,89.7,178.19,178.18,7.84275555]
[1752858874842,89.7,178.22,178.18,13.45505771]
[1752858875045,4.1817803,178.21,178.2,7.13275555]
[1752858875739,4.1817803,178.21,178.2,7.84275555]
[1752858875944,4.1817803,178.21,178.17,0.1]
[1752858876291,4.1817803,178.2,178.19,7.13275555]
[1752858877939,4.1817803,178.2,178.19,7.84275555]
[1752858879151,89.7,178.22,178.19,7.84275555]
[1752858879359,4.18755783,178.21,178.2,7.13275555]
[1752858879865,4.18755783,178.21,178.17,0.1]
[1752858879866,89.7,178.2,178.17,0.1]
[1752858880164,4.18755783,178.19,178.17,0.1]
[1752858880364,0.72,178.19,178.17,0.1]
[1752858880565,7.85275555,178.18,178.17,0.1]
[1752858880859,12.03949514,178.18,178.17,0.1]
[1752858881243,17.6517973,178.18,178.17,0.1]
[1752858881565,10.51904175,178.18,178.17,0.1]
[1752858882340,17.6517973,178.18,178.17,0.1]
[1752858885260,13.46505771,178.18,178.17,0.1]
[1752858885760,17.65107731,178.18,178.17,0.1]
[1752858885944,34.43576128,178.18,178.17,0.1]
[1752858886361,30.24974168,178.18,178.17,0.1]
[1752858886565,59.22974168,178.18,178.17,0.1]
[1752858887342,39.49717927,178.18,178.17,0.1]
[1752858887649,46.62993482,178.18,178.17,0.1]
[1752858887852,17.64993482,178.18,178.17,0.1]
[1752858889179,17.65123285,178.18,178.17,0.1]
[1752858889350,190.68468397,178.17,178.16,0.03]
[1752858889540,190.68468397,178.17,178.15,0.03]
[1752858889541,227.45743952,178.17,178.15,0.03]
[1752858889747,7.79275555,178.16,178.15,0.03]
[1752858890146,13.40568774,178.16,178.15,0.03]
[1752858890461,9.798435,178.16,178.15,0.03]
[1752858890649,31.61271146,178.17,178.15,0.03]
[1752858895073,7.79275555,178.16,178.15,0.03]
[1752858895976,38.74546701,178.17,178.15,0.03]
[1752858896274,5.67207292,178.19,178.15,0.72]
[1752858896477,31.67207292,178.19,178.16,0.69]
[1752858897177,5.67207292,178.19,178.16,7.82275555]
[1752858897388,0.06,178.19,178.16,7.82275555]
[1752858898164,0.06,178.19,178.16,0.69]
[1752858898360,0.06,178.19,178.16,7.13275555]
[1752858898565,0.06,178.19,178.17,7.82275555]
[1752858899055,89.76,178.19,178.17,7.13275555]
[1752858899260,89.76,178.19,178.18,7.82275555]
[1752858899887,0.06,178.19,178.18,7.82275555]
[1752858900966,0.06,178.19,178.18,13.43505771]
[1752858901187,0.06,178.19,178.18,20.56781326]
[1752858901366,0.06,178.23,178.22,7.13275555]
[1752858901769,0.06,178.24,178.22,7.82275555]
[1752858901963,0.06,178.27,178.26,7.13275555]
[1752858902372,0.06,178.27,178.26,7.82275555]
[1752858902967,0.06,178.27,178.26,13.43253901]
[1752858903168,0.06,178.27,178.26,21.57983901]
[1752858903369,0.06,178.27,178.26,28.71259456]
[1752858903570,0.06,178.27,178.26,21.57983901]
[1752858906289,0.06,178.27,178.26,54.71259456]
[1752858906468,0.06,178.27,178.26,47.57983901]
[1752858907395,0.06,178.27,178.26,21.57983901]
[1752858908467,0.06,178.27,178.26,50.51983901]
[1752858912480,0.06,178.27,178.26,74.43727853]
[1752858912799,0.06,178.27,178.23,0.69]
[1752858912977,0.06,178.27,178.25,7.13275555]
[1752858913166,0.06,178.27,178.26,7.13275555]
[1752858915195,0.06,178.27,178.26,13.43253901]
[1752858916687,0.06,178.27,178.26,7.13275555]
[1752858916887,0.06,178.27,178.26,12.74253901]
[1752858917597,0.06,178.27,178.26,13.39253901]
[1752858919197,0.06,178.27,178.26,36.05275555]
[1752858922388,0.06,178.27,178.26,7.13275555]
[1752858922589,0.06,178.27,178.26,36.05275555]
[1752858922804,0.06,178.27,178.26,7.13275555]
[1752858923107,89.7,178.26,178.17,0.03]
[1752858923405,7.13275555,178.23,178.18,36.05275555]
[1752858923701,0.66,178.22,178.18,36.05275555]
[1752858923898,0.66,178.21,178.18,36.05275555]
[1752858924283,0.66,178.21,178.19,7.13275555]
[1752858925492,95.31019708,178.25,178.19,7.13275555]
[1752858925683,89.7,178.25,178.24,7.13275555]
[1752858925899,0.06,178.27,178.24,36.05275555]
[1752858926104,0.06,178.27,178.26,7.13275555]
[1752858926418,0.72,178.27,178.26,7.13275555]
[1752858926907,7.85275555,178.27,178.24,28.92]
[1752858927121,28.42203226,178.25,178.2,11.63734829]
[1752858927284,11.63734829,178.23,178.19,28.92]
[1752858927794,0.66,178.22,178.19,28.92]
[1752858927986,12.29734829,178.22,178.19,28.92]
[1752858928182,6.27142621,178.21,178.19,28.92]
[1752858928401,0.66,178.2,178.19,28.92]
[1752858929091,0.66,178.2,178.18,28.92]
[1752858929293,0.66,178.2,178.17,0.03]
[1752858929294,0.66,178.19,178.17,0.03]
[1752858929530,0.66,178.19,178.17,28.95]
[1752858929832,0.66,178.22,178.18,11.63734829]
[1752858930024,0.66,178.22,178.19,11.63734829]
[1752858931032,0.66,178.22,178.2,11.63734829]
[1752858931315,7.77670519,178.24,178.21,11.63734829]
[1752858932707,0.66,178.23,178.2,28.92]
[1752858933101,12.29734829,178.23,178.17,0.03]
[1752858933315,11.63734829,178.2,178.17,0.03]
[1752858933692,0.66,178.19,178.17,0.03]
[1752858935018,0.66,178.18,178.17,0.03]
[1752858935801,5.61168175,178.2,178.17,0.03]
[1752858936005,6.27168175,178.2,178.17,11.66734829]
[1752858936230,0.66,178.19,178.17,11.66734829]
[1752858937198,5.61168175,178.2,178.17,11.66734829]
[1752858937623,0.66,178.19,178.17,11.66734829]
[1752858939625,0.66,178.21,178.18,11.63734829]
[1752858939804,5.61108892,178.22,178.2,11.63734829]
[1752858940127,6.27108892,178.22,178.2,11.63734829]
[1752858940328,89.7,178.23,178.21,11.63734829]
[1752858940544,90.42,178.27,178.22,0.65]
[1752858940726,96.02946878,178.27,178.26,11.63734829]
[1752858941245,96.02946878,178.27,178.25,11.63734829]
[1752858941409,95.36946878,178.27,178.25,11.63734829]
[1752858941614,0.66,178.26,178.25,11.63734829]
[1752858942825,17.90713175,178.26,178.18,5.61219789]
[1752858943014,90.36,178.25,178.21,11.63734829]
[1752858943224,0.66,178.24,178.22,11.63734829]
[1752858943799,0.66,178.23,178.19,28.92]
[1752858944004,0.66,178.22,178.2,11.63734829]
[1752858944309,0.66,178.21,178.2,11.63734829]
[1752858945111,0.66,178.21,178.19,11.63734829]
[1752858945311,0.66,178.2,178.17,0.03]
[1752858945730,0.69,178.19,178.17,0.03]
[1752858946621,0.69,178.19,178.17,11.66734829]
[1752858947730,89.7,178.21,178.18,0.03]
[1752858948044,89.7,178.21,178.19,11.63734829]
[1752858948428,0.69,178.2,178.18,0.03]
[1752858948628,0.69,178.2,178.18,11.66734829]
[1752858949240,89.7,178.21,178.19,11.63734829]
[1752858949936,89.7,178.21,178.2,11.63734829]
[1752858951326,90.39,178.21,178.18,28.95]
[1752858951529,90.39,178.21,178.19,11.63734829]
[1752858951930,89.7,178.21,178.2,11.63734829]
[1752858954342,90.39,178.21,178.2,11.63734829]
[1752858955848,90.39,178.21,178.18,28.95]
[1752858956031,89.7,178.21,178.18,40.58734829]
[1752858956224,0.69,178.2,178.18,40.58734829]
[1752858956425,0.69,178.2,178.18,11.66734829]
[1752858956625,0.69,178.2,178.19,11.63734829]
[1752858956835,89.7,178.21,178.19,11.63734829]
[1752858957356,90.39,178.21,178.19,11.63734829]
[1752858958778,0.69,178.2,178.19,11.63734829]
[1752858959061,0.69,178.2,178.18,11.66734829]
[1752858959231,0.69,178.19,178.18,0.03]
[1752858960734,6.3019872,178.19,178.18,0.03]
[1752858961134,26.0,178.21,178.18,11.66734829]
[1752858961335,26.0,178.21,178.19,11.63734829]
[1752858961551,5.6110424,178.23,178.19,11.63734829]
[1752858961730,0.69,178.22,178.2,11.63734829]
[1752858962642,0.69,178.21,178.19,11.63734829]
[1752858962843,11.63734829,178.2,178.18,0.03]
[1752858963060,89.7,178.19,178.18,0.03]
[1752858963238,102.02734829,178.19,178.18,0.03]
[1752858964165,90.39,178.19,178.18,0.03]
[1752858965048,96.0019872,178.19,178.18,0.03]
[1752858966305,89.7,178.19,178.18,0.03]
[1752858966467,89.7,178.19,178.18,11.66734829]
[1752858966762,89.7,178.19,178.18,46.88965045]
[1752858966947,0.06,178.24,178.18,72.55775415]
[1752858967145,0.06,178.24,178.23,11.63734829]
[1752858968145,0.06,178.24,178.23,12.34734829]
[1752858968739,0.06,178.24,178.23,17.958076]
[1752858970678,0.06,178.24,178.23,6.32072771]
[1752858970842,0.06,178.24,178.23,46.148076]
[1752858971249,0.06,178.24,178.23,40.53734829]
[1752858972858,0.06,178.24,178.23,46.148076]
[1752858973065,0.06,178.24,178.23,46.858076]
[1752858974751,0.06,178.28,178.26,11.63734829]
[1752858974947,0.06,178.28,178.26,40.53734829]